[Event "*** Titled Tuesday Blitz"]
[Site "Chess.com"]
[Date "2021.02.09"]
[Round "1"]
[White "Happy1712Drummer"]
[Black "Airquake"]
[Result "1-0"]
[WhiteElo "2369"]
[BlackElo "2664"]
[TimeControl "180+1"]
[EndTime "10:08:13 PST"]
[Termination "Happy1712Drummer won on time"]

1. Nf3 {[%clk 0:02:57.7]} 1... c5 {[%clk 0:02:57.3]} 2. e4 {[%clk 0:02:53.5]}
2... d6 {[%clk 0:02:56]} 3. d4 {[%clk 0:02:48.7]} 3... cxd4 {[%clk 0:02:56.2]}
4. Qxd4 {[%clk 0:02:49.3]} 4... Bd7 {[%clk 0:02:54.1]} 5. c4 {[%clk 0:02:38.3]}
5... Nc6 {[%clk 0:02:54.2]} 6. Qd2 {[%clk 0:02:37.5]} 6... Nf6 {[%clk
0:02:54.7]} 7. Nc3 {[%clk 0:02:36.6]} 7... g6 {[%clk 0:02:55.2]} 8. h3 {[%clk
0:02:36.2]} 8... Bg7 {[%clk 0:02:51.7]} 9. Bd3 {[%clk 0:02:36.6]} 9... O-O
{[%clk 0:02:51.6]} 10. b3 {[%clk 0:02:34.5]} 10... Rc8 {[%clk 0:02:34.9]} 11.
Bb2 {[%clk 0:02:32.5]} 11... Qa5 {[%clk 0:02:21.6]} 12. Rc1 {[%clk 0:02:00.4]}
12... Rfd8 {[%clk 0:02:16.9]} 13. O-O {[%clk 0:01:56]} 13... Qh5 {[%clk
0:02:16.7]} 14. Qe2 {[%clk 0:01:38.4]} 14... Bxh3 {[%clk 0:02:06.8]} 15. gxh3
{[%clk 0:01:36.9]} 15... Qxh3 {[%clk 0:02:06.6]} 16. Nh2 {[%clk 0:01:33.7]}
16... Bh6 {[%clk 0:01:12.8]} 17. Qf3 {[%clk 0:01:29]} 17... Qxf3 {[%clk
0:01:01.5]} 18. Nxf3 {[%clk 0:01:29.9]} 18... Bxc1 {[%clk 0:01:02.2]} 19. Rxc1
{[%clk 0:01:28.8]} 19... Ng4 {[%clk 0:01:01.4]} 20. Nd5 {[%clk 0:01:23.8]} 20...
Kf8 {[%clk 0:01:01.4]} 21. Be2 {[%clk 0:01:09.3]} 21... Nge5 {[%clk 0:00:49.4]}
22. Nd2 {[%clk 0:00:46.4]} 22... e6 {[%clk 0:00:43.4]} 23. Nf6 {[%clk
0:00:43.9]} 23... Kg7 {[%clk 0:00:39.3]} 24. Ng4 {[%clk 0:00:42.8]} 24... f6
{[%clk 0:00:39.1]} 25. Ne3 {[%clk 0:00:41]} 25... g5 {[%clk 0:00:37.7]} 26. Ndf1
{[%clk 0:00:40]} 26... Ng6 {[%clk 0:00:35.8]} 27. Ng3 {[%clk 0:00:38]} 27... Nf4
{[%clk 0:00:32]} 28. Nh5+ {[%clk 0:00:37.3]} 28... Kg6 {[%clk 0:00:30.4]} 29.
Nxf4+ {[%clk 0:00:33.6]} 29... gxf4 {[%clk 0:00:31.3]} 30. Ng2 {[%clk
0:00:31.9]} 30... Kg5 {[%clk 0:00:27.1]} 31. Rd1 {[%clk 0:00:30.6]} 31... Ne5
{[%clk 0:00:23.9]} 32. Bc1 {[%clk 0:00:29.3]} 32... Ng6 {[%clk 0:00:23.7]} 33.
Kh2 {[%clk 0:00:25.3]} 33... e5 {[%clk 0:00:20.9]} 34. Ne1 {[%clk 0:00:23]}
34... f5 {[%clk 0:00:18.7]} 35. Nf3+ {[%clk 0:00:23]} 35... Kf6 {[%clk
0:00:19.2]} 36. Bd3 {[%clk 0:00:22.5]} 36... Ne7 {[%clk 0:00:16.8]} 37. Nh4
{[%clk 0:00:20.6]} 37... fxe4 {[%clk 0:00:10.8]} 38. Bxe4 {[%clk 0:00:21.5]}
38... b6 {[%clk 0:00:10.3]} 39. Ba3 {[%clk 0:00:18.2]} 39... Ke6 {[%clk
0:00:06.4]} 40. Nf3 {[%clk 0:00:16.1]} 40... h6 {[%clk 0:00:05.4]} 41. Nh4
{[%clk 0:00:15.5]} 41... a6 {[%clk 0:00:05.5]} 42. Ng6 {[%clk 0:00:15]} 42...
Nxg6 {[%clk 0:00:05.3]} 43. Bxg6 {[%clk 0:00:15.6]} 43... b5 {[%clk 0:00:06.2]}
44. Be4 {[%clk 0:00:14.2]} 44... bxc4 {[%clk 0:00:06.2]} 45. Bd5+ {[%clk
0:00:14.7]} 45... Kf6 {[%clk 0:00:06.4]} 46. bxc4 {[%clk 0:00:14.9]} 46... Rb8
{[%clk 0:00:06.1]} 47. Rg1 {[%clk 0:00:13.9]} 47... Kf5 {[%clk 0:00:04.3]} 48.
f3 {[%clk 0:00:13.5]} 48... Kf6 {[%clk 0:00:04.6]} 49. Be4 {[%clk 0:00:13.8]}
49... Rg8 {[%clk 0:00:04.6]} 50. Rxg8 {[%clk 0:00:13]} 50... Rxg8 {[%clk
0:00:05.5]} 51. Bxd6 {[%clk 0:00:13]} 51... Rc8 {[%clk 0:00:05.4]} 52. c5 {[%clk
0:00:13.2]} 52... Ke6 {[%clk 0:00:06.3]} 53. Bd3 {[%clk 0:00:12.2]} 53... a5
{[%clk 0:00:05.7]} 54. Bc4+ {[%clk 0:00:12.3]} 54... Kd7 {[%clk 0:00:06]} 55.
Bb5+ {[%clk 0:00:11.7]} 55... Ke6 {[%clk 0:00:06.1]} 56. Kh3 {[%clk 0:00:12.3]}
56... Rg8 {[%clk 0:00:06.1]} 57. Bc4+ {[%clk 0:00:12.2]} 1-0

[Event "*** Titled Tuesday Blitz"]
[Site "Chess.com"]
[Date "2021.02.09"]
[Round "1"]
[White "davidkalashian"]
[Black "Homino"]
[Result "1-0"]
[WhiteElo "2595"]
[BlackElo "2285"]
[TimeControl "180+1"]
[EndTime "10:08:13 PST"]
[Termination "davidkalashian won on time"]

1. d4 {[%clk 0:02:59.7]} 1... Nf6 {[%clk 0:02:59.3]} 2. c4 {[%clk 0:02:59.1]}
2... c5 {[%clk 0:02:59.5]} 3. Nf3 {[%clk 0:02:59]} 3... g6 {[%clk 0:02:58.6]} 4.
Nc3 {[%clk 0:02:58.3]} 4... cxd4 {[%clk 0:02:56.7]} 5. Nxd4 {[%clk 0:02:57.2]}
5... Nc6 {[%clk 0:02:56.5]} 6. g3 {[%clk 0:02:57.4]} 6... Bg7 {[%clk 0:02:54.6]}
7. Bg2 {[%clk 0:02:57.9]} 7... O-O {[%clk 0:02:52.4]} 8. O-O {[%clk 0:02:58.2]}
8... Nxd4 {[%clk 0:02:50.7]} 9. Qxd4 {[%clk 0:02:57.8]} 9... d6 {[%clk
0:02:48.9]} 10. b3 {[%clk 0:02:54]} 10... Be6 {[%clk 0:02:30.5]} 11. Bb2 {[%clk
0:02:48.3]} 11... Nd7 {[%clk 0:02:07.2]} 12. Qd2 {[%clk 0:02:46]} 12... Nc5
{[%clk 0:01:58.9]} 13. Rad1 {[%clk 0:02:38.2]} 13... a5 {[%clk 0:01:56.7]} 14.
Nd5 {[%clk 0:02:32.2]} 14... Bxd5 {[%clk 0:01:52]} 15. Bxd5 {[%clk 0:02:25.3]}
15... Bxb2 {[%clk 0:01:47.3]} 16. Qxb2 {[%clk 0:02:26.2]} 16... Qb6 {[%clk
0:01:47.2]} 17. h4 {[%clk 0:02:23.9]} 17... h5 {[%clk 0:01:45.8]} 18. Rfe1
{[%clk 0:02:20.2]} 18... Qb4 {[%clk 0:01:39.9]} 19. Rb1 {[%clk 0:02:03.5]} 19...
a4 {[%clk 0:01:26.7]} 20. a3 {[%clk 0:01:46.8]} 20... Qxb3 {[%clk 0:01:18.6]}
21. Qd2 {[%clk 0:01:37.5]} 21... Qxa3 {[%clk 0:01:13.4]} 22. Ra1 {[%clk
0:01:35.6]} 22... Nb3 {[%clk 0:01:05.4]} 23. Qd3 {[%clk 0:01:35]} 23... Qb2
{[%clk 0:00:34.5]} 24. Qxg6+ {[%clk 0:01:34.5]} 24... Qg7 {[%clk 0:00:34.1]} 25.
Qxg7+ {[%clk 0:01:26.6]} 25... Kxg7 {[%clk 0:00:35]} 26. Ra3 {[%clk 0:01:22.3]}
26... Nc5 {[%clk 0:00:34.1]} 27. Rb1 {[%clk 0:01:20.1]} 27... Ra7 {[%clk
0:00:33.8]} 28. Rb4 {[%clk 0:01:18.2]} 28... e6 {[%clk 0:00:31.7]} 29. Bf3
{[%clk 0:01:17.2]} 29... Rfa8 {[%clk 0:00:28.6]} 30. Bxh5 {[%clk 0:01:16.1]}
30... Kf6 {[%clk 0:00:28.3]} 31. Bf3 {[%clk 0:01:15]} 31... Ke5 {[%clk
0:00:19.8]} 32. h5 {[%clk 0:01:15]} 32... d5 {[%clk 0:00:17.8]} 33. cxd5 {[%clk
0:01:13.9]} 33... exd5 {[%clk 0:00:18.7]} 34. Rb5 {[%clk 0:01:12.1]} 34... Kd6
{[%clk 0:00:18.4]} 35. Rc3 {[%clk 0:01:04.5]} 35... Rc8 {[%clk 0:00:17.3]} 36.
Rb6+ {[%clk 0:01:00.1]} 36... Rc6 {[%clk 0:00:17.3]} 37. Rb1 {[%clk 0:00:56.3]}
37... a3 {[%clk 0:00:16]} 38. Ra1 {[%clk 0:00:50.8]} 38... a2 {[%clk 0:00:16]}
39. Rc2 {[%clk 0:00:50.4]} 39... Rca6 {[%clk 0:00:15.1]} 40. Rd2 {[%clk
0:00:50.9]} 40... Nb3 {[%clk 0:00:13]} 41. Rxd5+ {[%clk 0:00:48.8]} 41... Ke7
{[%clk 0:00:12.5]} 42. Rxa2 {[%clk 0:00:44.5]} 42... Rxa2 {[%clk 0:00:12.1]} 43.
e3 {[%clk 0:00:39.2]} 43... Ra1+ {[%clk 0:00:11.9]} 44. Kg2 {[%clk 0:00:39.2]}
44... Ra8 {[%clk 0:00:11]} 45. Rb5 {[%clk 0:00:38.4]} 45... Nd2 {[%clk
0:00:10.4]} 46. Rxb7+ {[%clk 0:00:37.6]} 46... Kf8 {[%clk 0:00:09.3]} 47. Bd5
{[%clk 0:00:37.2]} 47... R1a7 {[%clk 0:00:07.6]} 48. Rb2 {[%clk 0:00:35.6]}
48... Rd8 {[%clk 0:00:07]} 49. Rxd2 {[%clk 0:00:35.5]} 49... Rad7 {[%clk
0:00:07.2]} 50. e4 {[%clk 0:00:35.8]} 50... Kg7 {[%clk 0:00:07.5]} 51. g4 {[%clk
0:00:35.2]} 51... Kf6 {[%clk 0:00:07.1]} 52. f4 {[%clk 0:00:32.6]} 52... Rb8
{[%clk 0:00:07.1]} 53. g5+ {[%clk 0:00:31.9]} 53... Kg7 {[%clk 0:00:07.2]} 54.
h6+ {[%clk 0:00:32.1]} 54... Kf8 {[%clk 0:00:04.4]} 55. Kg3 {[%clk 0:00:32.2]}
55... Rc8 {[%clk 0:00:03.4]} 56. Kg4 {[%clk 0:00:31.9]} 56... Rc1 {[%clk
0:00:03.3]} 57. Kf5 {[%clk 0:00:31.9]} 57... Rh1 {[%clk 0:00:02.7]} 58. Rb2
{[%clk 0:00:30.3]} 58... Ke7 {[%clk 0:00:01.1]} 59. Rb8 {[%clk 0:00:28.7]} 1-0

[Event "*** Titled Tuesday Blitz"]
[Site "Chess.com"]
[Date "2021.02.09"]
[Round "1"]
[White "AwareIdea"]
[Black "Beca95"]
[Result "0-1"]
[WhiteElo "2451"]
[BlackElo "2906"]
[TimeControl "180+1"]
[EndTime "10:08:15 PST"]
[Termination "Beca95 won on time"]

1. d4 {[%clk 0:03:00.1]} 1... Nf6 {[%clk 0:02:59.4]} 2. Bf4 {[%clk 0:02:59.3]}
2... d6 {[%clk 0:02:57.9]} 3. e3 {[%clk 0:02:58.6]} 3... g6 {[%clk 0:02:56.3]}
4. Nc3 {[%clk 0:02:57.5]} 4... Bg7 {[%clk 0:02:53.2]} 5. h4 {[%clk 0:02:57.6]}
5... h6 {[%clk 0:02:47.6]} 6. Nf3 {[%clk 0:02:55.1]} 6... Bg4 {[%clk 0:02:46.1]}
7. Be2 {[%clk 0:02:54.8]} 7... Nc6 {[%clk 0:02:44.3]} 8. Bh2 {[%clk 0:02:53.3]}
8... a6 {[%clk 0:02:41.1]} 9. Qd2 {[%clk 0:02:50.9]} 9... O-O {[%clk 0:02:38.1]}
10. a3 {[%clk 0:02:44.6]} 10... b5 {[%clk 0:02:37.4]} 11. Ng1 {[%clk 0:02:35.4]}
11... Bxe2 {[%clk 0:02:36.6]} 12. Ngxe2 {[%clk 0:02:36.3]} 12... e5 {[%clk
0:02:35.8]} 13. dxe5 {[%clk 0:02:28.9]} 13... Nxe5 {[%clk 0:02:29.5]} 14. Bxe5
{[%clk 0:02:17.4]} 14... dxe5 {[%clk 0:02:30.4]} 15. Qxd8 {[%clk 0:02:14.1]}
15... Rfxd8 {[%clk 0:02:31.3]} 16. Rd1 {[%clk 0:02:10.6]} 16... Rxd1+ {[%clk
0:02:29.2]} 17. Nxd1 {[%clk 0:02:11.3]} 17... Ne4 {[%clk 0:02:26.6]} 18. Ndc3
{[%clk 0:02:05.1]} 18... Nxc3 {[%clk 0:02:20.9]} 19. Nxc3 {[%clk 0:02:06]} 19...
e4 {[%clk 0:02:21.4]} 20. Nd1 {[%clk 0:02:04.4]} 20... Rd8 {[%clk 0:02:19.9]}
21. c3 {[%clk 0:02:02.4]} 21... f5 {[%clk 0:02:19.2]} 22. f3 {[%clk 0:01:58.6]}
22... exf3 {[%clk 0:02:18.9]} 23. gxf3 {[%clk 0:01:59.5]} 23... Kf7 {[%clk
0:02:19.4]} 24. Ke2 {[%clk 0:01:54.5]} 24... c5 {[%clk 0:02:06.1]} 25. Nf2
{[%clk 0:01:53.9]} 25... c4 {[%clk 0:02:05.4]} 26. Nh3 {[%clk 0:01:49.8]} 26...
Be5 {[%clk 0:02:00.2]} 27. f4 {[%clk 0:01:39.7]} 27... Bc7 {[%clk 0:01:56]} 28.
Ng1 {[%clk 0:01:39.3]} 28... Re8 {[%clk 0:01:54.4]} 29. Kd2 {[%clk 0:01:29.5]}
29... Bb6 {[%clk 0:01:44.6]} 30. Rh3 {[%clk 0:01:22]} 30... Rd8+ {[%clk
0:01:44.2]} 31. Ke2 {[%clk 0:01:20.5]} 31... Rd3 {[%clk 0:01:44.4]} 32. Rg3
{[%clk 0:01:19.2]} 32... a5 {[%clk 0:01:39]} 33. Nh3 {[%clk 0:01:18.6]} 33... b4
{[%clk 0:01:32.8]} 34. axb4 {[%clk 0:01:18.2]} 34... axb4 {[%clk 0:01:31.6]} 35.
Nf2 {[%clk 0:01:18.1]} 35... Rd5 {[%clk 0:01:29.4]} 36. Rg1 {[%clk 0:00:34.7]}
36... bxc3 {[%clk 0:01:25.8]} 37. bxc3 {[%clk 0:00:35.6]} 37... Rb5 {[%clk
0:01:25.9]} 38. Nd1 {[%clk 0:00:32.2]} 38... Bd8 {[%clk 0:01:24.2]} 39. Rh1
{[%clk 0:00:29.8]} 39... h5 {[%clk 0:01:17.3]} 40. Kf3 {[%clk 0:00:23.7]} 40...
Bf6 {[%clk 0:01:03]} 41. e4 {[%clk 0:00:21.7]} 41... fxe4+ {[%clk 0:01:00.1]}
42. Kxe4 {[%clk 0:00:22.6]} 42... Rb1 {[%clk 0:00:59.9]} 43. Kd5 {[%clk
0:00:19.3]} 43... Bxc3 {[%clk 0:00:58.5]} 44. Kxc4 {[%clk 0:00:19.3]} 44... Bf6
{[%clk 0:00:56.7]} 45. Kd3 {[%clk 0:00:17.9]} 45... Be7 {[%clk 0:00:50.6]} 46.
Ke4 {[%clk 0:00:14.7]} 46... Kf6 {[%clk 0:00:49.5]} 47. Rf1 {[%clk 0:00:13.3]}
47... Rb4+ {[%clk 0:00:44.6]} 48. Kf3 {[%clk 0:00:12.1]} 48... Bc5 {[%clk
0:00:44.8]} 49. Kg3 {[%clk 0:00:11.4]} 49... Kf5 {[%clk 0:00:40.3]} 50. Rf3
{[%clk 0:00:06.6]} 50... Re4 {[%clk 0:00:20.2]} 51. Nc3 {[%clk 0:00:02.8]} 51...
Rd4 {[%clk 0:00:14.5]} 52. Ne2 {[%clk 0:00:02.3]} 52... Rd2 {[%clk 0:00:14.4]}
53. Nc3 {[%clk 0:00:02.5]} 53... Bd6 {[%clk 0:00:13.9]} 54. Nb5 {[%clk
0:00:01.5]} 54... Bb8 {[%clk 0:00:14]} 55. Nc3 {[%clk 0:00:01.5]} 55... Rd4
{[%clk 0:00:13.6]} 0-1

[Event "*** Titled Tuesday Blitz"]
[Site "Chess.com"]
[Date "2021.02.09"]
[Round "1"]
[White "lamomiablanca"]
[Black "anantone"]
[Result "0-1"]
[WhiteElo "2279"]
[BlackElo "2589"]
[TimeControl "180+1"]
[EndTime "10:08:17 PST"]
[Termination "anantone won by checkmate"]

1. e4 {[%clk 0:03:00.7]} 1... e6 {[%clk 0:02:55.2]} 2. d4 {[%clk 0:03:00.2]}
2... d5 {[%clk 0:02:52.6]} 3. Nd2 {[%clk 0:02:53.8]} 3... Nf6 {[%clk 0:02:40]}
4. e5 {[%clk 0:02:53.2]} 4... Nfd7 {[%clk 0:02:30.7]} 5. Bd3 {[%clk 0:02:52.5]}
5... c5 {[%clk 0:02:31]} 6. c3 {[%clk 0:02:51.8]} 6... Nc6 {[%clk 0:02:31.4]} 7.
Ngf3 {[%clk 0:02:51.6]} 7... Be7 {[%clk 0:02:30.6]} 8. O-O {[%clk 0:02:50.7]}
8... g5 {[%clk 0:02:30.8]} 9. Qe2 {[%clk 0:02:39.4]} 9... g4 {[%clk 0:02:29.9]}
10. Ne1 {[%clk 0:02:37.5]} 10... cxd4 {[%clk 0:02:27.1]} 11. cxd4 {[%clk
0:02:14.2]} 11... Nxd4 {[%clk 0:02:16.9]} 12. Qxg4 {[%clk 0:02:12.9]} 12... Nc6
{[%clk 0:02:01.4]} 13. f4 {[%clk 0:02:11.5]} 13... Nc5 {[%clk 0:01:46.1]} 14.
Bc2 {[%clk 0:02:07.4]} 14... Qb6 {[%clk 0:01:44.6]} 15. Kh1 {[%clk 0:02:05.6]}
15... Bd7 {[%clk 0:01:42.8]} 16. Nef3 {[%clk 0:02:03.9]} 16... O-O-O {[%clk
0:01:39.7]} 17. Nb3 {[%clk 0:01:57.1]} 17... Nb4 {[%clk 0:01:30.7]} 18. Bd1
{[%clk 0:01:51]} 18... Ne4 {[%clk 0:01:20.1]} 19. Nfd4 {[%clk 0:01:36.3]} 19...
Rhg8 {[%clk 0:01:13.1]} 20. Qf3 {[%clk 0:01:33.8]} 20... Kb8 {[%clk 0:01:04.9]}
21. Be3 {[%clk 0:01:30.4]} 21... Qa6 {[%clk 0:00:47.4]} 22. Be2 {[%clk
0:01:26.3]} 22... Qa4 {[%clk 0:00:45.8]} 23. Rfd1 {[%clk 0:00:53.4]} 23... Rc8
{[%clk 0:00:43.1]} 24. Qf1 {[%clk 0:00:43.5]} 24... Nc2 {[%clk 0:00:40.7]} 25.
Nxc2 {[%clk 0:00:42.1]} 25... Rxc2 {[%clk 0:00:41.1]} 26. Nd4 {[%clk 0:00:41.3]}
26... Rxb2 {[%clk 0:00:32]} 27. Rab1 {[%clk 0:00:37.3]} 27... Rxb1 {[%clk
0:00:26.4]} 28. Rxb1 {[%clk 0:00:38.2]} 28... Nc3 {[%clk 0:00:26.3]} 29. Rb3
{[%clk 0:00:28.3]} 29... Nxe2 {[%clk 0:00:18.7]} 30. Qxe2 {[%clk 0:00:29.2]}
30... Bc5 {[%clk 0:00:13.7]} 31. Qb2 {[%clk 0:00:24.5]} 31... b6 {[%clk
0:00:12.1]} 32. h3 {[%clk 0:00:22.5]} 32... Qc4 {[%clk 0:00:12.1]} 33. Kh2
{[%clk 0:00:16.9]} 33... Ba4 {[%clk 0:00:11.1]} 34. Rc3 {[%clk 0:00:16]} 34...
Bxd4 {[%clk 0:00:10]} 35. Bxd4 {[%clk 0:00:16.5]} 35... Qf1 {[%clk 0:00:08.4]}
36. Rf3 {[%clk 0:00:15.9]} 36... Qb5 {[%clk 0:00:05.8]} 37. Qd2 {[%clk
0:00:15.1]} 37... Qc4 {[%clk 0:00:05.4]} 38. Bc3 {[%clk 0:00:14.9]} 38... Qe4
{[%clk 0:00:05.3]} 39. Re3 {[%clk 0:00:15.1]} 39... Qxf4+ {[%clk 0:00:05.2]} 40.
g3 {[%clk 0:00:15.5]} 40... Qc4 {[%clk 0:00:05.1]} 41. Bd4 {[%clk 0:00:15.3]}
41... Bb5 {[%clk 0:00:05.4]} 42. Re1 {[%clk 0:00:13.8]} 42... Rc8 {[%clk
0:00:04.6]} 43. Qg2 {[%clk 0:00:13.2]} 43... Qc2 {[%clk 0:00:04.7]} 44. Bf2
{[%clk 0:00:13.5]} 44... Qxa2 {[%clk 0:00:04.9]} 45. Re3 {[%clk 0:00:11.5]}
45... Rc2 {[%clk 0:00:05.4]} 46. Rf3 {[%clk 0:00:12.1]} 46... Bd3 {[%clk
0:00:05.1]} 47. Rxf7 {[%clk 0:00:11.9]} 47... Bf5 {[%clk 0:00:05.3]} 48. Rf8+
{[%clk 0:00:11.4]} 48... Kb7 {[%clk 0:00:05.8]} 49. Kg1 {[%clk 0:00:10]} 49...
Be4 {[%clk 0:00:04.5]} 50. Qf1 {[%clk 0:00:09.4]} 50... Qb2 {[%clk 0:00:03.1]}
51. Rf7+ {[%clk 0:00:09.4]} 51... Kc6 {[%clk 0:00:02.7]} 52. Be1 {[%clk
0:00:07.4]} 52... Rg2+ {[%clk 0:00:02.9]} 53. Kh1 {[%clk 0:00:07]} 53... Rf2+
{[%clk 0:00:03.1]} 54. Rf3 {[%clk 0:00:05]} 54... Rxf3 {[%clk 0:00:02.3]} 55.
Qa6 {[%clk 0:00:01.4]} 55... Rf1# {[%clk 0:00:02.6]} 0-1

[Event "*** Titled Tuesday Blitz"]
[Site "Chess.com"]
[Date "2021.02.09"]
[Round "1"]
[White "youngKID"]
[Black "mr_gustavo"]
[Result "1-0"]
[WhiteElo "2840"]
[BlackElo "2423"]
[TimeControl "180+1"]
[EndTime "10:08:19 PST"]
[Termination "youngKID won on time"]

1. Nf3 {[%clk 0:02:59]} 1... Nf6 {[%clk 0:02:59]} 2. g3 {[%clk 0:02:56]} 2... g6
{[%clk 0:02:59.3]} 3. c4 {[%clk 0:02:54.6]} 3... Bg7 {[%clk 0:02:59]} 4. Nc3
{[%clk 0:02:54.9]} 4... O-O {[%clk 0:02:59]} 5. Bg2 {[%clk 0:02:54.6]} 5... d6
{[%clk 0:02:58.7]} 6. d4 {[%clk 0:02:53.9]} 6... Bf5 {[%clk 0:02:57.5]} 7. O-O
{[%clk 0:02:51.9]} 7... Ne4 {[%clk 0:02:56.2]} 8. Bd2 {[%clk 0:02:43.7]} 8...
Nxd2 {[%clk 0:02:54.7]} 9. Qxd2 {[%clk 0:02:44.1]} 9... c6 {[%clk 0:02:51.1]}
10. h3 {[%clk 0:02:40.4]} 10... d5 {[%clk 0:02:42.8]} 11. b3 {[%clk 0:02:30.2]}
11... dxc4 {[%clk 0:02:41.8]} 12. bxc4 {[%clk 0:02:30.2]} 12... Be6 {[%clk
0:02:41.6]} 13. Qd3 {[%clk 0:02:12.9]} 13... Na6 {[%clk 0:02:28.7]} 14. Rab1
{[%clk 0:02:03.5]} 14... Qc8 {[%clk 0:02:09.5]} 15. Kh2 {[%clk 0:01:49.2]} 15...
Rd8 {[%clk 0:02:08.9]} 16. e3 {[%clk 0:01:33]} 16... Nc7 {[%clk 0:01:08.3]} 17.
Rfd1 {[%clk 0:01:22.5]} 17... c5 {[%clk 0:01:07]} 18. d5 {[%clk 0:01:01.8]}
18... Bd7 {[%clk 0:01:04.9]} 19. e4 {[%clk 0:00:54.1]} 19... a6 {[%clk 0:00:56]}
20. Rb6 {[%clk 0:00:50.5]} 20... Rb8 {[%clk 0:00:46.8]} 21. e5 {[%clk
0:00:40.9]} 21... Na8 {[%clk 0:00:46.4]} 22. Rb3 {[%clk 0:00:39.8]} 22... Bf5
{[%clk 0:00:41.4]} 23. Qe2 {[%clk 0:00:36.5]} 23... Nc7 {[%clk 0:00:30.3]} 24.
a4 {[%clk 0:00:33.8]} 24... b5 {[%clk 0:00:17.1]} 25. axb5 {[%clk 0:00:32.5]}
25... axb5 {[%clk 0:00:17]} 26. cxb5 {[%clk 0:00:22.1]} 26... Na8 {[%clk
0:00:16]} 27. Nd2 {[%clk 0:00:17.1]} 27... Nb6 {[%clk 0:00:14.5]} 28. Rc1 {[%clk
0:00:08.7]} 28... Qc7 {[%clk 0:00:11.3]} 29. f4 {[%clk 0:00:07.4]} 29... c4
{[%clk 0:00:11.3]} 30. Rb2 {[%clk 0:00:06.9]} 30... Bd3 {[%clk 0:00:10.8]} 31.
Qf2 {[%clk 0:00:07.4]} 31... Qa7 {[%clk 0:00:07.2]} 32. Bf1 {[%clk 0:00:07.3]}
32... Bxf1 {[%clk 0:00:06.4]} 33. Nxf1 {[%clk 0:00:07.6]} 33... Qa3 {[%clk
0:00:06]} 34. Ne3 {[%clk 0:00:07.1]} 34... Bf8 {[%clk 0:00:04.2]} 35. Rbc2
{[%clk 0:00:07]} 35... e6 {[%clk 0:00:03.3]} 36. d6 {[%clk 0:00:07.1]} 36... Qc5
{[%clk 0:00:03.7]} 37. Ne4 {[%clk 0:00:07.1]} 37... Qxb5 {[%clk 0:00:03.5]} 38.
Nf6+ {[%clk 0:00:06.9]} 38... Kh8 {[%clk 0:00:04]} 39. Nxc4 {[%clk 0:00:07.4]}
39... Nxc4 {[%clk 0:00:04]} 40. Rxc4 {[%clk 0:00:08.3]} 40... Qa6 {[%clk
0:00:03.2]} 41. g4 {[%clk 0:00:08.1]} 41... Qa3 {[%clk 0:00:03.7]} 42. R4c3
{[%clk 0:00:08.1]} 42... Qb4 {[%clk 0:00:02.7]} 43. Qg3 {[%clk 0:00:07.7]} 43...
Bh6 {[%clk 0:00:02.7]} 44. g5 {[%clk 0:00:08.1]} 44... Bf8 {[%clk 0:00:03.3]}
45. R1c2 {[%clk 0:00:07.8]} 45... Qb1 {[%clk 0:00:03]} 46. Rc1 {[%clk
0:00:07.6]} 46... Qb2+ {[%clk 0:00:02.8]} 47. R3c2 {[%clk 0:00:07.4]} 47... Qb4
{[%clk 0:00:03.7]} 48. h4 {[%clk 0:00:06.4]} 48... Ra8 {[%clk 0:00:03.2]} 49.
Qf3 {[%clk 0:00:03]} 49... Ra3 {[%clk 0:00:03.5]} 50. Rc3 {[%clk 0:00:03.5]}
50... Ra2+ {[%clk 0:00:03.6]} 51. R1c2 {[%clk 0:00:04.1]} 51... Ra1 {[%clk
0:00:04.2]} 52. h5 {[%clk 0:00:04.3]} 52... Qb1 {[%clk 0:00:04.2]} 53. hxg6
{[%clk 0:00:03.8]} 53... Qg1+ {[%clk 0:00:03.4]} 54. Kh3 {[%clk 0:00:04.2]}
54... fxg6 {[%clk 0:00:03.7]} 55. Rc7 {[%clk 0:00:04.4]} 55... Bg7 {[%clk
0:00:02.4]} 56. Rc8 {[%clk 0:00:04.9]} 1-0